fUSD/lending_fUSD_20240501
["ID","MTS","AMOUNT","RATE_DAILY","PERIOD"]
[325162669,1714545046174,-1286.93,0.00010958,2]
[325162670,1714545046184,-500.0,0.00010958,2]
[325162671,1714545046194,-500.0,0.00010958,2]
[325162672,1714545046204,-821.32,0.00010958,2]
[325162673,1714545046214,-500.0,0.00010958,2]
[325162674,1714545046225,-593.78,0.00010958,2]
[325162675,1714545046235,-500.0,0.00010958,2]
[325162676,1714545046245,-500.0,0.00010958,2]
[325162677,1714545046256,-500.0,0.00010958,2]
[325162678,1714545046267,-500.0,0.00010958,2]
[325162679,1714545046278,-500.0,0.00010958,2]
[325162680,1714545046290,-856.37,0.00010958,2]
[325162681,1714545046301,-500.0,0.00010958,2]
[325162682,1714545046313,-500.0,0.00010958,2]
[325162683,1714545046323,-502.97936871,0.00010958,2]
[325162684,1714545046333,-8199.9,0.00010958,2]
[325162685,1714545046343,-748.86,0.00010958,2]
[325162686,1714545046354,-543.52,0.00010958,2]
[325162687,1714545046368,-1889.06,0.00010958,2]
[325162688,1714545046378,-500.0,0.00010958,2]
[325162689,1714545046388,-500.0,0.00010958,2]
[325162690,1714545046399,-500.0,0.00010958,2]
[325162691,1714545046409,-500.0,0.00010958,2]
[325162692,1714545046419,-500.0,0.00010958,2]
[325162693,1714545046429,-1041.02,0.00010958,2]
[325162694,1714545046440,-500.0,0.00010958,2]
[325162695,1714545046450,-500.0,0.00010958,2]
[325162696,1714545046459,-500.0,0.00010958,2]
[325162697,1714545046470,-500.0,0.00010958,2]
[325162698,1714545046480,-688.02,0.00010958,2]
[325162699,1714545046742,-500.0,0.00010958,2]
[325162700,1714545046760,-680.61,0.00010958,2]
[325162701,1714545046769,-698.9,0.00010958,2]
[325162702,1714545046778,-854.77,0.00010958,2]
[325162703,1714545046787,-500.0,0.00010958,2]
[325162704,1714545046796,-500.0,0.00010958,2]
[325162705,1714545046805,-500.0,0.00010958,2]
[325162706,1714545046814,-500.0,0.00010958,2]
[325162707,1714545046823,-500.0,0.00010958,2]
[325162708,1714545046832,-500.0,0.00010958,2]
[325162709,1714545046841,-7768.08,0.00010958,2]
[325162710,1714545046850,-500.0,0.00010958,2]
[325162711,1714545046861,-500.0,0.00010958,2]
[325162712,1714545046871,-500.0,0.00010958,2]
[325162713,1714545046880,-500.0,0.00010958,2]
[325162714,1714545046889,-500.0,0.00010958,2]
[325162715,1714545046898,-500.0,0.00010958,2]
[325162718,1714545046907,-500.0,0.00010958,2]
[325162719,1714545046921,-500.0,0.00010958,2]
[325162721,1714545046930,-3305.17,0.00010958,2]
[325162722,1714545046939,-1251.86,0.00010958,2]
[325162723,1714545046948,-500.0,0.00010958,2]
[325162724,1714545046958,-500.0,0.00010958,2]
[325162725,1714545046967,-500.0,0.00010958,2]
[325162726,1714545046976,-500.0,0.00010958,2]
[325162727,1714545046985,-500.0,0.00010958,2]
[325162728,1714545046994,-500.0,0.00010958,2]
[325162729,1714545047004,-500.0,0.00010958,2]
[325162730,1714545047013,-500.0,0.00010958,2]
[325162731,1714545047022,-500.0,0.00010958,2]
[325162732,1714545047031,-500.0,0.00010958,2]
[325162733,1714545047041,-890.44,0.00010958,2]
[325162734,1714545047050,-500.0,0.00010958,2]
[325162735,1714545047059,-1864.4,0.00010958,2]
[325162736,1714545047068,-500.0,0.00010958,2]
[325162737,1714545047077,-500.0,0.00010958,2]
[325162738,1714545047086,-500.0,0.00010958,2]
[325162739,1714545047096,-1157.73,0.00010958,2]
[325162740,1714545047105,-500.0,0.00010958,2]
[325162741,1714545047117,-531.21,0.00010958,2]
[325162742,1714545047126,-500.0,0.00010958,2]
[325162743,1714545047135,-500.0,0.00010958,2]
[325162744,1714545047145,-500.0,0.00010958,2]
[325162745,1714545047154,-500.0,0.00010958,2]
[325162746,1714545047163,-391.1231484,0.00010958,2]
[325162747,1714545047172,-500.0,0.00010958,2]
[325162748,1714545047182,-500.0,0.00010958,2]
[325162749,1714545047191,-500.0,0.00010958,2]
[325162750,1714545047201,-500.0,0.00010958,2]
[325162751,1714545047210,-500.0,0.00010958,2]
[325162752,1714545047220,-500.0,0.00010958,2]
[325162753,1714545047229,-500.0,0.00010958,2]
[325162754,1714545047238,-500.0,0.00010958,2]
[325162755,1714545047247,-500.0,0.00010958,2]
[325162756,1714545047257,-500.0,0.00010958,2]
[325162757,1714545047267,-500.0,0.00010958,2]
[325162758,1714545047276,-500.0,0.00010958,2]
[325162759,1714545047285,-500.0,0.00010958,2]
[325162760,1714545047294,-500.0,0.00010958,2]
[325162761,1714545047303,-500.0,0.00010958,2]
[325162762,1714545047312,-500.0,0.00010958,2]
[325162763,1714545047321,-5462.45,0.00010958,2]
[325162764,1714545047331,-500.0,0.00010958,2]
[325162765,1714545047340,-500.0,0.00010958,2]
[325162766,1714545047349,-500.0,0.00010958,2]
[325162767,1714545047359,-500.0,0.00010958,2]
[325162768,1714545047369,-1162.49,0.00010958,2]
[325162769,1714545047378,-500.0,0.00010958,2]
[325162770,1714545047388,-500.0,0.00010958,2]
[325162771,1714545047397,-500.0,0.00010958,2]
[325162772,1714545047406,-500.0,0.00010958,2]
[325162773,1714545047416,-500.0,0.00010958,2]
[325162774,1714545047425,-500.0,0.00010958,2]
[325162775,1714545047434,-500.0,0.00010958,2]
[325162776,1714545047444,-500.0,0.00010958,2]
[325162777,1714545047453,-500.0,0.00010958,2]
[325162778,1714545047462,-500.0,0.00010958,2]
[325162779,1714545047472,-500.0,0.00010958,2]
[325162781,1714545047481,-500.0,0.00010958,2]
[325162783,1714545047491,-502.3752221,0.00010958,2]
[325162785,1714545047500,-500.0,0.00010958,2]
[325162787,1714545047510,-500.0,0.00010958,2]
[325162789,1714545047520,-500.0,0.00010958,2]
[325162790,1714545047530,-500.0,0.00010958,2]
[325162792,1714545047540,-500.0,0.00010958,2]
[325162793,1714545047549,-524.34085374,0.00010958,2]
[325162794,1714545047558,-500.0,0.00010958,2]
[325162795,1714545047568,-500.0,0.00010958,2]
[325162796,1714545047577,-500.0,0.00010958,2]
[325162798,1714545047586,-500.0,0.00010958,2]
[325162799,1714545047595,-718.2,0.00010958,2]
[325162802,1714545047604,-500.0,0.00010958,2]
[325162804,1714545047615,-500.0,0.00010958,2]
[325162806,1714545047624,-500.0,0.00010958,2]
[325162807,1714545047634,-500.0,0.00010958,2]
[325162808,1714545047643,-7793.85,0.00010958,2]
[325162809,1714545047653,-500.0,0.00010958,2]
[325162810,1714545047663,-500.0,0.00010958,2]
[325162811,1714545047673,-500.0,0.00010958,2]
[325162812,1714545047682,-500.0,0.00010958,2]
[325162813,1714545047691,-241.27586092,0.00010958,2]
[325162814,1714545047700,-500.0,0.00010958,2]
[325162815,1714545047710,-500.0,0.00010958,2]
[325162816,1714545047719,-500.0,0.00010958,2]
[325162817,1714545047728,-500.0,0.00010958,2]
[325162818,1714545047738,-500.0,0.00010958,2]
[325162819,1714545047747,-500.0,0.00010958,2]
[325162820,1714545047757,-500.0,0.00010958,2]
[325162821,1714545047766,-500.0,0.00010958,2]
[325162822,1714545047776,-500.0,0.00010958,2]
[325162823,1714545047786,-500.0,0.00010958,2]
[325162824,1714545047795,-500.0,0.00010958,2]
[325162825,1714545047805,-500.0,0.00010958,2]
[325162826,1714545047814,-500.94664219,0.00010958,2]
[325162827,1714545047824,-500.3041797,0.00010958,2]
[325162828,1714545047833,-506.1861943,0.00010958,2]
[325162829,1714545047842,-504.72191785,0.00010958,2]
[325162830,1714545047851,-500.0,0.00010958,2]
[325162831,1714545047863,-500.0,0.00010958,2]
[325162832,1714545047872,-1485.5,0.00010958,2]
[325162833,1714545047881,-500.0,0.00010958,2]
[325162834,1714545047890,-500.0,0.00010958,2]
[325162835,1714545047900,-501.67990523,0.00010958,2]
[325162836,1714545047910,-500.0,0.00010958,2]
[325162837,1714545047919,-500.0,0.00010958,2]
[325162838,1714545047930,-500.0,0.00010958,2]
[325162839,1714545047942,-500.0,0.00010958,2]
[325162840,1714545047951,-500.0,0.00010958,2]
[325162841,1714545047960,-500.0,0.00010958,2]
[325162842,1714545047969,-996.52,0.00010958,2]
[325162843,1714545047979,-500.0,0.00010958,2]
[325162844,1714545047988,-500.0,0.00010958,2]
[325162845,1714545047997,-500.0,0.00010958,2]
[325162846,1714545048007,-500.0,0.00010958,2]
[325162847,1714545048016,-500.0,0.00010958,2]
[325162848,1714545048025,-200.0,0.00010959,2]
[325162849,1714545048034,-153.69,0.0001096,2]
[325162850,1714545048043,-1000.0,0.000111,2]
[325162851,1714545048052,-1000.0,0.000111,2]
[325162852,1714545048062,-178.02364972,0.00011132,2]
[325162853,1714545048071,-1000.0,0.000112,2]
[325162854,1714545048080,-1020.0,0.000112,2]
[325162855,1714545048089,-945.85426494,0.00011231,2]
[325162856,1714545048099,-500.0,0.00011231,2]
[325162857,1714545048109,-500.0,0.00011231,2]
[325162858,1714545048119,-500.0,0.00011231,2]
[325162859,1714545048128,-500.0,0.00011232,2]
[325162860,1714545048138,-500.0,0.00011232,2]
[325162861,1714545048147,-500.0,0.00011232,2]
[325162862,1714545048157,-500.0,0.00011232,2]
[325162863,1714545048167,-500.0,0.00011232,2]
[325162864,1714545048177,-500.0,0.00011232,2]
[325162865,1714545048186,-519.9774641,0.00011232,2]
[325162866,1714545048196,-500.0,0.00011232,2]
[325162867,1714545048205,-500.0,0.00011232,2]
[325162868,1714545048214,-500.0,0.00011232,2]
[325162869,1714545048224,-461.91151631,0.00011232,2]
[325162870,1714545048233,-500.0,0.00011232,2]
[325162871,1714545048242,-500.0,0.00011232,2]
[325162872,1714545048252,-500.0,0.00011232,2]
[325162873,1714545048261,-500.0,0.00011232,2]
[325162874,1714545048271,-500.0,0.00011232,2]
[325162875,1714545048280,-500.0,0.00011232,2]
[325162876,1714545048289,-500.0,0.00011232,2]
[325162877,1714545048298,-500.0,0.00011232,2]
[325162878,1714545048308,-500.0,0.00011232,2]
[325162879,1714545048316,-500.0,0.00011232,2]
[325162880,1714545048326,-500.0,0.00011232,2]
[325162881,1714545048335,-282.81843957,0.00011232,2]
[325162882,1714545048344,-500.0,0.00011232,2]
[325162883,1714545048353,-500.0,0.00011232,2]
[325162884,1714545048364,-500.0,0.00011232,2]
[325162885,1714545048373,-500.0,0.00011232,2]
[325162886,1714545048382,-500.0,0.00011232,2]
[325162887,1714545048391,-500.0,0.00011232,2]
[325162888,1714545048400,-500.0,0.00011232,2]
[325162889,1714545048410,-500.0,0.00011232,2]
[325162890,1714545048419,-500.0,0.00011232,2]
[325162891,1714545048428,-500.0,0.00011232,2]
[325162892,1714545048438,-524.88,0.00011232,2]
[325162893,1714545048448,-500.0,0.00011232,2]
[325162894,1714545048457,-500.0,0.00011232,2]
[325162895,1714545048467,-500.0,0.00011232,2]
[325162896,1714545048476,-150.0,0.00011232,2]
[325162897,1714545048486,-500.0,0.00011232,2]
[325162898,1714545048495,-500.0,0.00011232,2]
[325162899,1714545048504,-500.0,0.00011232,2]
[325162900,1714545048514,-500.0,0.00011232,2]
[325162901,1714545048523,-500.0,0.00011232,2]
[325162902,1714545048532,-500.0,0.00011232,2]
[325162903,1714545048542,-500.0,0.00011232,2]
[325162904,1714545048551,-507.56577984,0.00011232,2]
[325162905,1714545048561,-500.0,0.00011232,2]
[325162906,1714545048570,-500.0,0.00011232,2]
[325162907,1714545048579,-500.0,0.00011232,2]
[325162908,1714545048589,-500.0,0.00011232,2]
[325162909,1714545048598,-500.0,0.00011232,2]
[325162910,1714545048607,-500.0,0.00011232,2]
[325162911,1714545048617,-500.0,0.00011232,2]
[325162912,1714545048626,-500.0,0.00011232,2]
[325162913,1714545048635,-500.0,0.00011232,2]
[325162914,1714545048644,-500.0,0.00011232,2]
[325162915,1714545048654,-510.81228016,0.00011232,2]
[325162916,1714545048663,-500.0,0.00011232,2]
[325162917,1714545048673,-500.0,0.00011232,2]
[325162918,1714545048682,-720.45,0.00011232,2]
[325162919,1714545048692,-500.0,0.00011232,2]
[325162920,1714545048701,-507.98830911,0.00011232,2]
[325162921,1714545048712,-500.0,0.00011232,2]
[325162922,1714545048721,-500.0,0.00011232,2]
[325162923,1714545048731,-500.0,0.00011232,2]
[325162924,1714545048741,-313.95240429,0.00011232,2]
[325162925,1714545048750,-500.0,0.00011232,2]
[325162926,1714545048759,-500.0,0.00011232,2]
[325162927,1714545048769,-1025.3,0.00011232,2]
[325162928,1714545048779,-500.0,0.00011232,2]
[325162929,1714545048789,-500.0,0.00011232,2]
[325162930,1714545048798,-500.0,0.00011232,2]
[325162931,1714545048808,-500.0,0.00011232,2]
[325162932,1714545048818,-500.0,0.00011232,2]
[325162933,1714545048828,-179.85152085,0.00011232,2]
[325162934,1714545048837,-746.03,0.00011232,2]
[325162935,1714545048847,-1722.51,0.00011232,2]
[325162936,1714545048856,-500.0,0.00011232,2]
[325162937,1714545048871,-642.2,0.00011232,2]
[325162938,1714545048880,-500.0,0.00011232,2]
[325162939,1714545048888,-500.0,0.00011232,2]
[325162940,1714545048897,-500.0,0.00011232,2]
[325162941,1714545048907,-500.0,0.00011232,2]
[325162942,1714545048921,-726.94,0.00011232,2]
[325162943,1714545048930,-500.0,0.00011232,2]
[325162944,1714545048940,-2065.04,0.00011232,2]
[325162945,1714545048949,-2278.32,0.00011232,2]
[325162946,1714545048959,-500.0,0.00011232,2]
[325162947,1714545048968,-500.0,0.00011232,2]
[325162948,1714545048977,-480.01726623,0.00011232,2]
[325162949,1714545048986,-500.0,0.00011232,2]
[325162950,1714545048996,-931.71,0.00011232,2]
[325162951,1714545049005,-440.68,0.00011232,2]
[325162952,1714545049015,-500.0,0.00011232,2]
[325162953,1714545049024,-500.0,0.00011232,2]
[325162954,1714545049033,-500.0,0.00011232,2]
[325162955,1714545049047,-500.0,0.00011232,2]
[325162956,1714545049057,-500.0,0.00011232,2]
[325162957,1714545049066,-506.99,0.00011232,2]
[325162958,1714545049075,-3371.47,0.00011232,2]
[325162959,1714545049085,-850.52,0.00011232,2]
[325162960,1714545049094,-500.0,0.00011232,2]
[325162961,1714545049104,-500.0,0.00011232,2]
[325162962,1714545049115,-500.0,0.00011232,2]
[325162963,1714545049124,-500.0,0.00011232,2]
[325162964,1714545049133,-500.0,0.00011232,2]
[325162965,1714545049142,-874.44,0.00011232,2]
[325162966,1714545049152,-500.0,0.00011232,2]
[325162967,1714545049161,-500.0,0.00011232,2]
[325162968,1714545049170,-831.84,0.00011232,2]
[325162969,1714545049180,-500.0,0.00011232,2]
[325162970,1714545049189,-500.0,0.00011232,2]
[325162971,1714545049199,-444.81764359,0.00011232,2]
[325162972,1714545049208,-536.35,0.00011232,2]
[325162973,1714545049217,-500.0,0.00011232,2]
[325162974,1714545049227,-607.51,0.00011232,2]
[325162975,1714545049236,-500.0,0.00011232,2]
[325162976,1714545049246,-500.0,0.00011232,2]
[325162977,1714545049255,-500.0,0.00011232,2]
[325162978,1714545049265,-500.0,0.00011232,2]
[325162979,1714545049275,-500.0,0.00011232,2]
[325162980,1714545049285,-627.74,0.00011232,2]
[325162981,1714545049294,-500.0,0.00011232,2]
[325162982,1714545049304,-2391.01,0.00011232,2]
[325162983,1714545049313,-500.0,0.00011232,2]
[325162984,1714545049323,-500.0,0.00011232,2]
[325162985,1714545049332,-526.56947142,0.00011232,2]
[325162986,1714545049342,-500.0,0.00011232,2]
[325162987,1714545049351,-500.0,0.00011232,2]
[325162988,1714545049362,-1225.96,0.00011232,2]
[325162989,1714545049371,-500.0,0.00011232,2]
[325162990,1714545049381,-585.65,0.00011232,2]
[325162991,1714545049391,-500.0,0.00011232,2]
[325162992,1714545049400,-1693.03,0.00011232,2]
[325162993,1714545049410,-500.0,0.00011232,2]
[325162994,1714545049420,-500.0,0.00011232,2]
[325162995,1714545049429,-1865.17,0.00011232,2]
[325162996,1714545049439,-557.7,0.00011232,2]
[325162997,1714545049448,-803.13,0.00011232,2]
[325162998,1714545049458,-2121.14,0.00011232,2]
[325162999,1714545049467,-1352.04,0.00011232,2]
[325163000,1714545049477,-525.51,0.00011232,2]
[325163001,1714545049488,-500.0,0.00011232,2]
[325163002,1714545049498,-614.48,0.00011232,2]
[325163003,1714545049507,-500.0,0.00011232,2]
[325163004,1714545049517,-500.0,0.00011232,2]
[325163005,1714545049526,-500.0,0.00011232,2]
[325163006,1714545049536,-2127.36,0.00011232,2]
[325163007,1714545049546,-1286.93,0.00011232,2]
[325163008,1714545049556,-500.0,0.00011232,2]
[325163009,1714545049565,-821.32,0.00011232,2]
[325163010,1714545049575,-500.0,0.00011232,2]
[325163011,1714545049584,-593.78,0.00011232,2]
[325163012,1714545049593,-500.0,0.00011232,2]
[325163013,1714545049603,-428.1645872,0.00011232,2]
[325163014,1714545049612,-856.37,0.00011232,2]
[325163015,1714545049622,-500.0,0.00011232,2]
[325163016,1714545049631,-8199.9,0.00011232,2]
[325163017,1714545049640,-748.86,0.00011232,2]
[325163018,1714545049650,-543.52,0.00011232,2]
[325163019,1714545049659,-1889.06,0.00011232,2]
[325163020,1714545049668,-503.38892201,0.00011232,2]
[325163021,1714545049678,-1041.02,0.00011232,2]
[325163022,1714545049687,-500.0,0.00011232,2]
[325163023,1714545049696,-688.02,0.00011232,2]
[325163024,1714545049706,-533.6301216,0.00011232,2]
[325163025,1714545049715,-680.61,0.00011232,2]
[325163026,1714545049724,-698.9,0.00011232,2]
[325163027,1714545049733,-854.77,0.00011232,2]
[325163028,1714545049742,-500.0,0.00011232,2]
[325163029,1714545049751,-500.0,0.00011232,2]
[325163030,1714545049760,-500.0,0.00011232,2]
[325163031,1714545049769,-7768.08,0.00011232,2]
[325163032,1714545049778,-500.0,0.00011232,2]
[325163033,1714545049787,-500.0,0.00011232,2]
[325163034,1714545049796,-500.0,0.00011232,2]
[325163035,1714545049805,-500.0,0.00011232,2]
[325163036,1714545049814,-500.0,0.00011232,2]
[325163037,1714545049823,-3305.17,0.00011232,2]
[325163038,1714545049832,-1251.86,0.00011232,2]
[325163039,1714545049841,-500.0,0.00011232,2]
[325163040,1714545049850,-500.0,0.00011232,2]
[325163041,1714545049859,-500.0,0.00011232,2]
[325163042,1714545049869,-500.0,0.00011232,2]
[325163043,1714545050015,-500.0,0.00011232,2]
[325163044,1714545050032,-500.0,0.00011232,2]
[325163045,1714545050041,-890.44,0.00011232,2]
[325163046,1714545050051,-500.0,0.00011232,2]
[325163047,1714545050059,-1864.4,0.00011232,2]
[325163048,1714545050069,-500.0,0.00011232,2]
[325163049,1714545050078,-1157.73,0.00011232,2]
[325163050,1714545050087,-531.21,0.00011232,2]
[325163051,1714545050096,-500.0,0.00011232,2]
[325163052,1714545050106,-500.0,0.00011232,2]
[325163053,1714545050116,-614.40208503,0.00011232,2]
[325163054,1714545050126,-509.42568191,0.00011232,2]
[325163055,1714545050135,-500.0,0.00011232,2]
[325163056,1714545050144,-500.0,0.00011232,2]
[325163057,1714545050153,-515.05639804,0.00011232,2]
[325163058,1714545050163,-500.0,0.00011232,2]
[325163059,1714545050172,-500.0,0.00011232,2]
[325163060,1714545050181,-5462.45,0.00011232,2]
[325163061,1714545050190,-500.0,0.00011232,2]
[325163062,1714545050199,-172.69011073,0.00011232,2]
[325163063,1714545050209,-500.0,0.00011232,2]
[325163064,1714545050218,-1162.49,0.00011232,2]
[325163065,1714545050227,-642.64,0.00011232,2]
[325163066,1714545050237,-500.0,0.00011232,2]
[325163067,1714545050246,-500.0,0.00011232,2]
[325163068,1714545050255,-500.0,0.00011232,2]
[325163069,1714545050264,-510.14930352,0.00011232,2]
[325163070,1714545050274,-500.0,0.00011232,2]
[325163071,1714545050283,-500.0,0.00011232,2]
[325163072,1714545050292,-525.53634131,0.00011232,2]
[325163073,1714545050302,-500.0,0.00011232,2]
[325163074,1714545050312,-500.0,0.00011232,2]
[325163075,1714545050322,-500.0,0.00011232,2]
[325163076,1714545050331,-718.2,0.00011232,2]
[325163077,1714545050341,-500.0,0.00011232,2]
[325163078,1714545050352,-500.0,0.00011232,2]
[325163079,1714545050362,-500.0,0.00011232,2]
[325163080,1714545050372,-7793.85,0.00011232,2]
[325163081,1714545050382,-500.0,0.00011232,2]
[325163082,1714545050391,-500.0,0.00011232,2]
[325163083,1714545050400,-500.0,0.00011232,2]
[325163084,1714545050409,-500.0,0.00011232,2]
[325163085,1714545050418,-500.0,0.00011232,2]
[325163086,1714545050428,-500.0,0.00011232,2]
[325163087,1714545050437,-500.0,0.00011232,2]
[325163088,1714545050446,-500.0,0.00011232,2]
[325163089,1714545050455,-500.0,0.00011232,2]
[325163090,1714545050464,-500.0,0.00011232,2]
[325163091,1714545050473,-500.0,0.00011232,2]
[325163092,1714545050483,-500.0,0.00011232,2]
[325163093,1714545050492,-500.0,0.00011232,2]
[325163094,1714545050501,-1485.5,0.00011232,2]
[325163095,1714545050510,-500.0,0.00011232,2]
[325163096,1714545050519,-500.0,0.00011232,2]
[325163097,1714545050528,-500.0,0.00011232,2]
[325163098,1714545050537,-996.52,0.00011232,2]
[325163099,1714545050546,-500.0,0.00011232,2]
[325163100,1714545050555,-500.0,0.00011232,2]
[325163101,1714545050564,-1000.0,0.000113,2]
[325163102,1714545050574,-1000.0,0.000113,2]
[325163103,1714545050583,-157.16,0.00011333,2]
[325163104,1714545050592,-150.51007187,0.00011427,2]
[325163105,1714545050601,-1000.0,0.000115,2]
[325163106,1714545050611,-1000.0,0.000115,2]
[325163107,1714545050620,-1000.0,0.000115,2]
[325163108,1714545050629,-199.58912559,0.00011506,2]
[325163109,1714545050638,-500.0,0.00011506,2]
[325163110,1714545050647,-500.0,0.00011506,2]
[325163111,1714545050656,-500.0,0.00011506,2]
[325163112,1714545050665,-500.0,0.00011506,2]
[325163113,1714545050674,-417.80602893,0.00011506,2]
[325163114,1714545050683,-585.81240846,0.00011506,2]
[325163115,1714545050692,-500.0,0.00011506,2]
[325163116,1714545050701,-500.0,0.00011506,2]
[325163117,1714545050710,-500.0,0.00011506,2]
[325163118,1714545050719,-500.0,0.00011506,2]
[325163119,1714545050729,-500.0,0.00011506,2]
[325163120,1714545050737,-500.0,0.00011506,2]
[325163121,1714545050747,-500.0,0.00011506,2]
[325163122,1714545050756,-500.0,0.00011506,2]
[325163123,1714545050766,-500.0,0.00011506,2]
[325163124,1714545050775,-500.0,0.00011506,2]
[325163125,1714545050784,-500.0,0.00011506,2]
[325163126,1714545050793,-591.97211661,0.00011506,2]
[325163127,1714545050803,-500.0,0.00011506,2]
[325163128,1714545050812,-500.0,0.00011506,2]
[325163129,1714545050822,-524.88,0.00011506,2]
[325163130,1714545050831,-500.0,0.00011506,2]
[325163131,1714545050840,-500.0,0.00011506,2]
[325163132,1714545050849,-150.0,0.00011506,2]
[325163133,1714545050859,-500.0,0.00011506,2]
[325163134,1714545050869,-500.0,0.00011506,2]
[325163135,1714545050879,-594.8633383,0.00011506,2]
[325163136,1714545050888,-500.0,0.00011506,2]
[325163137,1714545050898,-500.0,0.00011506,2]
[325163138,1714545050908,-500.0,0.00011506,2]
[325163139,1714545050926,-578.91,0.00011506,2]
[325163140,1714545050935,-500.0,0.00011506,2]
[325163141,1714545050944,-500.0,0.00011506,2]
[325163142,1714545050953,-500.0,0.00011506,2]
[325163143,1714545050964,-500.0,0.00011506,2]
[325163144,1714545050974,-447.95935647,0.00011506,2]
[325163145,1714545050983,-422.89504729,0.00011506,2]
[325163146,1714545050992,-500.0,0.00011506,2]
[325163147,1714545051002,-720.45,0.00011506,2]
[325163148,1714545051012,-500.0,0.00011506,2]
[325163149,1714545051022,-1025.3,0.00011506,2]
[325163150,1714545051031,-500.0,0.00011506,2]
[325163151,1714545051041,-500.0,0.00011506,2]
[325163152,1714545051050,-500.0,0.00011506,2]
[325163153,1714545051059,-500.0,0.00011506,2]
[325163154,1714545051069,-746.03,0.00011506,2]
[325163155,1714545051078,-1722.51,0.00011506,2]
[325163156,1714545051088,-500.0,0.00011506,2]
[325163157,1714545051098,-642.2,0.00011506,2]
[325163158,1714545051107,-500.0,0.00011506,2]
[325163159,1714545051118,-500.0,0.00011506,2]
[325163160,1714545051127,-500.0,0.00011506,2]
[325163161,1714545051136,-726.94,0.00011506,2]
[325163162,1714545051145,-500.0,0.00011506,2]
[325163163,1714545051155,-2065.04,0.00011506,2]
[325163164,1714545051164,-2278.32,0.00011506,2]
[325163165,1714545051174,-500.0,0.00011506,2]
[325163166,1714545051183,-500.0,0.00011506,2]
[325163167,1714545051193,-931.71,0.00011506,2]
[325163168,1714545051202,-500.0,0.00011506,2]
[325163169,1714545051212,-500.0,0.00011506,2]
[325163170,1714545051222,-500.0,0.00011506,2]
[325163171,1714545051231,-500.0,0.00011506,2]
[325163172,1714545051240,-506.99,0.00011506,2]
[325163173,1714545051250,-3371.47,0.00011506,2]
[325163174,1714545051259,-850.52,0.00011506,2]
[325163175,1714545051268,-254.87,0.00011506,2]
[325163176,1714545051278,-500.0,0.00011506,2]
[325163177,1714545051287,-500.0,0.00011506,2]
[325163178,1714545051297,-874.44,0.00011506,2]
[325163179,1714545051306,-500.0,0.00011506,2]
[325163180,1714545051316,-500.0,0.00011506,2]
[325163181,1714545051326,-831.84,0.00011506,2]
[325163182,1714545051335,-500.0,0.00011506,2]